fUSD/lending_fUSD_20260702
["ID","MTS","AMOUNT","RATE_DAILY","PERIOD"]
[426880868,1782977433000,-1283.47347249,0.00025398,2]
[426880867,1782977433000,-172.50867144,0.00025398,2]
[426880863,1782977433000,-1500.0,0.00025398,2]
[426880865,1782977433000,-1500.0,0.00025398,2]
[426880862,1782977433000,-1500.0,0.00025398,2]
[426880870,1782977433000,-218.36439374,0.00025577,2]
[426880872,1782977433000,-1283.47347249,0.00025672,2]
[426880871,1782977433000,-202.21455776,0.00025577,2]
[426880873,1782977433000,-200.97560465,0.00025679,2]
[426880876,1782977433000,-529.79,0.00025863,2]
[426880878,1782977433000,-518.5,0.00025946,2]
[426880866,1782977433000,-1500.0,0.00025398,2]
[426880877,1782977433000,-162.62,0.00025925,2]
[426880885,1782977433000,-168.96845676,0.00026,2]
[426880880,1782977433000,-1283.47347249,0.00025946,2]
[426880889,1782977433000,-158.0,0.00026,2]
[426880886,1782977433000,-226.0,0.00026,2]
[426880891,1782977433000,-336.70896075,0.00026127,2]
[426880882,1782977433000,-155.7513953,0.00025971,2]
[426880884,1782977433000,-159.0,0.00026,2]
[426880881,1782977433000,-263.0,0.00025963,5]
[426880883,1782977433000,-158.0,0.00026,2]
[426880875,1782977433000,-1121.52,0.00025863,2]
[426880879,1782977433000,-1500.0,0.00025946,2]
[426880874,1782977433000,-500.0,0.00025863,2]
[426880944,1782977434000,-186.81068019,0.00027397,4]
[426880938,1782977434000,-415.54,0.00027392,2]
[426880937,1782977434000,-684.0,0.00027318,5]
[426880940,1782977434000,-515.34,0.00027397,2]
[426880936,1782977434000,-1283.47347249,0.00027316,2]
[426880945,1782977434000,-4583.26,0.00027397,10]
[426880947,1782977434000,-1924.62193926,0.000274,2]
[426880939,1782977434000,-150.0,0.00027397,2]
[426880943,1782977434000,-1500.0,0.00027397,2]
[426880946,1782977434000,-8001.41,0.00027397,10]
[426880942,1782977434000,-184.90772972,0.00027397,2]
[426880949,1782977434000,-174.815115,0.000274,2]
[426880933,1782977434000,-160.0,0.00027256,2]
[426880941,1782977434000,-150.0,0.00027397,2]
[426880934,1782977434000,-674.0,0.00027261,5]
[426880921,1782977434000,-1283.47347249,0.00027042,2]
[426880931,1782977434000,-152.61433426,0.00027207,2]
[426880922,1782977434000,-1924.62193926,0.000271,2]
[426880920,1782977434000,-158.0,0.00027,2]
[426880917,1782977434000,-159.0,0.00027,2]
[426880919,1782977434000,-219.0,0.00027,2]
[426880923,1782977434000,-8526.36039221,0.000271,2]
[426880918,1782977434000,-226.0,0.00027,2]
[426880935,1782977434000,-200.0,0.00027313,2]
[426880924,1782977434000,-174.815115,0.000271,2]
[426880926,1782977434000,-160.0,0.00027138,2]
[426880927,1782977434000,-164.02,0.00027144,7]
[426880930,1782977434000,-216.69616408,0.00027201,2]
[426880929,1782977434000,-13702.56187946,0.00027185,2]
[426880928,1782977434000,-163.62,0.00027144,7]
[426880932,1782977434000,-503.0,0.00027233,2]
[426880925,1782977434000,-300.74165882,0.00027123,7]
[426880948,1782977434000,-8526.36039221,0.000274,2]
[426880953,1782977434000,-297.33188531,0.00027526,2]
[426880951,1782977434000,-377.0,0.000275,7]
[426880950,1782977434000,-1092.0,0.00027433,5]
[426880983,1782977434000,-260.03248731,0.00028082,2]
[426880979,1782977434000,-219.0,0.00028,2]
[426880981,1782977434000,-150.0,0.0002803,2]
[426880980,1782977434000,-158.0,0.00028,2]
[426880978,1782977434000,-226.0,0.00028,2]
[426880975,1782977434000,-1965.80672726,0.00028,2]
[426880977,1782977434000,-159.0,0.00028,2]
[426880976,1782977434000,-158.0,0.00028,2]
[426880973,1782977434000,-1924.62193926,0.00028,2]
[426880972,1782977434000,-2000.0,0.00027999,4]
[426880974,1782977434000,-6560.55366495,0.00028,2]
[426880968,1782977434000,-150.0,0.00027819,2]
[426880967,1782977434000,-166.0,0.00027804,3]
[426880971,1782977434000,-163.42970685,0.0002799,5]
[426880982,1782977434000,-5384.3965858,0.00028082,2]
[426880965,1782977434000,-174.815115,0.000277,2]
[426880954,1782977434000,-2000.0,0.00027587,3]
[426880969,1782977434000,-328.62907501,0.00027856,14]
[426880955,1782977434000,-2000.0,0.00027589,14]
[426880956,1782977434000,-1283.47347249,0.0002759,2]
[426880960,1782977434000,-223.6161998,0.00027698,2]
[426880958,1782977434000,-150.0,0.00027608,2]
[426880959,1782977434000,-13702.56187946,0.00027634,2]
[426880957,1782977434000,-350.0,0.000276,9]
[426880963,1782977434000,-1924.62193926,0.000277,2]
[426880961,1782977434000,-189.02278615,0.00027698,2]
[426880962,1782977434000,-350.0,0.00027699,2]
[426880964,1782977434000,-8526.36039221,0.000277,2]
[426880952,1782977434000,-500.0,0.000275,7]
[426880966,1782977434000,-350.0,0.0002771,2]
[426880970,1782977434000,-1283.47347249,0.00027864,2]
[426880984,1782977435000,10000.0,0.00037093,120]
[426880986,1782977436000,1319.97,0.00017645,2]
[426880985,1782977436000,10000.0,0.00037093,120]
[426880987,1782977437000,782.96,0.00018016,2]
[426881023,1782977440000,-500.0,0.00022458,2]
[426881022,1782977440000,-500.0,0.00022458,2]
[426881020,1782977440000,-500.0,0.00022458,2]
[426881016,1782977440000,-500.0,0.00022458,2]
[426881019,1782977440000,-500.0,0.00022458,2]
[426881018,1782977440000,-500.0,0.00022458,2]
[426881024,1782977440000,-500.0,0.00022458,2]
[426881017,1782977440000,-500.0,0.00022458,2]
[426881021,1782977440000,-500.0,0.00022458,2]
[426881026,1782977440000,-500.0,0.00022458,2]
[426881033,1782977440000,-500.0,0.00022458,2]
[426881025,1782977440000,-500.0,0.00022458,2]
[426881027,1782977440000,-500.0,0.00022458,2]
[426881030,1782977440000,-500.0,0.00022458,2]
[426881029,1782977440000,-500.0,0.00022458,2]
[426881032,1782977440000,-500.0,0.00022458,2]
[426881031,1782977440000,-500.0,0.00022458,2]
[426881039,1782977440000,-500.0,0.00022458,2]
[426881040,1782977440000,-500.0,0.00022458,2]
[426881014,1782977440000,-500.0,0.00022458,2]
[426881028,1782977440000,-500.0,0.00022458,2]
[426881011,1782977440000,-500.0,0.00022458,2]
[426881001,1782977440000,-500.0,0.00022458,2]
[426881015,1782977440000,-500.0,0.00022458,2]
[426881035,1782977440000,-500.0,0.00022458,2]
[426880991,1782977440000,-150.0,0.00021732,2]
[426880992,1782977440000,-176.40218271,0.00022458,2]
[426880993,1782977440000,-500.0,0.00022458,2]
[426880998,1782977440000,-603.4600102,0.00022458,2]
[426880995,1782977440000,-284.10391207,0.00022458,2]
[426880994,1782977440000,-500.0,0.00022458,2]
[426881000,1782977440000,-500.0,0.00022458,2]
[426880996,1782977440000,-500.0,0.00022458,2]
[426880999,1782977440000,-500.0,0.00022458,2]
[426880997,1782977440000,-500.0,0.00022458,2]
[426881002,1782977440000,-500.0,0.00022458,2]
[426881003,1782977440000,-553.85434287,0.00022458,2]
[426881004,1782977440000,-500.0,0.00022458,2]
[426881005,1782977440000,-385.05280889,0.00022458,2]
[426881007,1782977440000,-500.0,0.00022458,2]
[426881008,1782977440000,-500.0,0.00022458,2]
[426881006,1782977440000,-500.0,0.00022458,2]
[426881009,1782977440000,-500.0,0.00022458,2]
[426881010,1782977440000,-500.0,0.00022458,2]
[426881012,1782977440000,-500.0,0.00022458,2]
[426881013,1782977440000,-500.0,0.00022458,2]
[426881041,1782977440000,-500.0,0.00022458,2]
[426881048,1782977440000,-500.0,0.00028098,7]
[426881038,1782977440000,-449.97406935,0.00022458,2]
[426881066,1782977440000,-1000.0,0.00028315,2]
[426881065,1782977440000,-1000.0,0.00028315,2]
[426881067,1782977440000,-1000.0,0.00028315,2]
[426881070,1782977440000,-1000.0,0.00028315,2]
[426881072,1782977440000,-469.2,0.00028364,7]
[426881069,1782977440000,-1000.0,0.00028315,2]
[426881071,1782977440000,-867.25732837,0.00028356,14]
[426881068,1782977440000,-1000.0,0.00028315,2]
[426881073,1782977440000,-350.0,0.00028392,2]
[426881064,1782977440000,-176.3,0.0002831,2]
[426881074,1782977440000,-8068.02955303,0.000284,2]
[426881077,1782977440000,-8068.02955298,0.000284,2]
[426881083,1782977440000,-8068.02955298,0.000284,2]
[426881084,1782977440000,-1283.47347249,0.00028412,2]
[426881085,1782977440000,-1000.0,0.00028429,2]
[426881081,1782977440000,-8068.02955298,0.000284,2]
[426881082,1782977440000,-8068.02955298,0.000284,2]
[426881078,1782977440000,-8068.02955298,0.000284,2]
[426881080,1782977440000,-8068.02955298,0.000284,2]
[426881034,1782977440000,-500.0,0.00022458,2]
[426881075,1782977440000,-8068.02955298,0.000284,2]
[426881063,1782977440000,-2074.4275505,0.00028274,2]
[426881076,1782977440000,-8068.02955298,0.000284,2]
[426881061,1782977440000,-3261.746,0.0002824,19]
[426881060,1782977440000,-150.0,0.0002824,2]
[426881037,1782977440000,-500.0,0.00022458,2]
[426881042,1782977440000,-500.0,0.00022458,2]
[426881036,1782977440000,-500.0,0.00022458,2]
[426881045,1782977440000,-8058.13280635,0.00028082,2]
[426881043,1782977440000,-164.26,0.00024658,2]
[426881046,1782977440000,-1623.92386914,0.00028085,2]
[426881047,1782977440000,-516.74123717,0.00028098,7]
[426881079,1782977440000,-8068.02955298,0.000284,2]
[426881051,1782977440000,-151.0,0.00028103,3]
[426881044,1782977440000,-164.26,0.00027144,7]
[426881049,1782977440000,-500.0,0.00028098,5]
[426881055,1782977440000,-151.0,0.00028103,3]
[426881053,1782977440000,-152.0,0.00028103,3]
[426881052,1782977440000,-151.0,0.00028103,3]
[426881054,1782977440000,-151.0,0.00028103,3]
[426881056,1782977440000,-1283.47347249,0.00028138,2]
[426881057,1782977440000,-1924.62193926,0.000282,2]
[426881059,1782977440000,-1623.92386914,0.00028228,2]
[426881058,1782977440000,-8526.36039221,0.000282,2]
[426881050,1782977440000,-500.0,0.00028098,14]
[426881062,1782977440000,-184.83,0.0002824,19]
[426881116,1782977441000,-562.23694,0.0002871,2]
[426881127,1782977441000,-8526.36039221,0.000288,2]
[426881125,1782977441000,-5132.060157,0.00028774,7]
[426881123,1782977441000,-1000.0,0.00028772,2]
[426881121,1782977441000,-1000.0,0.00028772,2]
[426881118,1782977441000,-562.23695,0.0002871,2]
[426881120,1782977441000,-1000.0,0.00028767,2]
[426881117,1782977441000,-562.23695,0.0002871,2]
[426881119,1782977441000,-150.0,0.00028767,2]
[426881126,1782977441000,-430.97195315,0.00028774,7]
[426881122,1782977441000,-1000.0,0.00028772,2]
[426881124,1782977441000,-1000.0,0.00028772,2]
[426881136,1782977441000,-160.56,0.00028863,7]
[426881128,1782977441000,-900.0,0.000288,10]
[426881129,1782977441000,-162.62,0.00028806,2]
[426881131,1782977441000,-166.0,0.00028818,3]
[426881134,1782977441000,-1529.94472654,0.00028856,14]
[426881133,1782977441000,-361.72657515,0.00028841,2]
[426881135,1782977441000,-2288.70581092,0.00028856,14]
[426881132,1782977441000,-157.83,0.00028826,2]
[426881140,1782977441000,-822.61535635,0.00028871,2]
[426881144,1782977441000,-155.1049337,0.000289,10]
[426881142,1782977441000,-1000.0,0.00028886,2]
[426881139,1782977441000,-529.79,0.0002887,7]
[426881115,1782977441000,-378.006184,0.0002871,7]
[426881130,1782977441000,-282.02313025,0.00028818,3]
[426881113,1782977441000,-400.0,0.000287,10]
[426881089,1782977441000,-152.0,0.00028512,5]
[426881112,1782977441000,-1283.47347249,0.00028686,2]
[426881086,1782977441000,-150.0,0.00028451,2]
[426881088,1782977441000,-8526.36039221,0.000285,2]
[426881087,1782977441000,-152.0,0.0002848,3]
[426881090,1782977441000,-13702.56187946,0.00028531,2]
[426881137,1782977441000,-168.58,0.00028863,7]
[426881092,1782977441000,-1000.0,0.00028543,2]
[426881091,1782977441000,-1000.0,0.00028543,2]
[426881095,1782977441000,-151.0,0.00028581,3]
[426881093,1782977441000,-1000.0,0.00028543,2]
[426881096,1782977441000,-163.34551353,0.00028581,3]
[426881094,1782977441000,-1000.0,0.00028543,2]
[426881098,1782977441000,-217.36057861,0.00028609,2]
[426881114,1782977441000,-422.266039,0.0002871,7]
[426881097,1782977441000,-350.0,0.00028591,2]
[426881101,1782977441000,-151.0,0.0002861,3]
[426881100,1782977441000,-229.15448688,0.00028609,2]
[426881102,1782977441000,-151.0,0.0002861,3]
[426881103,1782977441000,-151.0,0.0002861,3]
[426881105,1782977441000,-2000.0,0.00028645,15]
[426881104,1782977441000,-166.0,0.0002861,3]
[426881106,1782977441000,-1000.0,0.00028658,2]
[426881108,1782977441000,-1000.0,0.00028658,2]
[426881107,1782977441000,-1000.0,0.00028658,2]
[426881110,1782977441000,-1000.0,0.00028658,2]
[426881109,1782977441000,-1000.0,0.00028658,2]
[426881111,1782977441000,-295.42054962,0.00028662,2]
[426881099,1782977441000,-271.09247814,0.00028609,2]
[426881141,1782977441000,-150.0,0.00028872,2]
[426881143,1782977441000,-2000.0,0.00028899,10]
[426881146,1782977441000,-343.643576,0.000289,2]
[426881177,1782977441000,-22192.0,0.00028959,2]
[426881178,1782977441000,-1283.47347249,0.0002896,2]
[426881180,1782977441000,-13702.56187946,0.0002898,2]
[426881179,1782977441000,-2000.0,0.00028969,6]
[426881181,1782977441000,-49848.0,0.00028986,2]
[426881182,1782977441000,-6908.41207308,0.00028989,2]
[426881183,1782977441000,-521.04363516,0.00028999,7]
[426881184,1782977441000,-500.0,0.00028999,14]
[426881193,1782977441000,-32540.0,0.00029,2]
[426881189,1782977441000,-529.79,0.00028999,7]
[426881186,1782977441000,-2000.0,0.00028999,7]
[426881192,1782977441000,-10106.80895477,0.00029,5]
[426881188,1782977441000,-1121.52,0.00028999,7]
[426881190,1782977441000,-21793.84149869,0.00029,2]
[426881191,1782977441000,-5368.23442625,0.00029,2]
[426881187,1782977441000,-2000.0,0.00028999,5]
[426881185,1782977441000,-2000.0,0.00028999,2]
[426881195,1782977441000,-1005.21293862,0.00029,2]
[426881194,1782977441000,-10390.71698618,0.00029,2]
[426881196,1782977441000,-999.10398624,0.00029,2]
[426881198,1782977441000,-2331.85297312,0.00029,2]
[426881201,1782977441000,-169.95223119,0.00029,2]
[426881197,1782977441000,-475.09776278,0.00029,2]
[426881199,1782977441000,-13031.79404672,0.00029,2]
[426881200,1782977441000,-1831.20525285,0.00029,2]
[426881138,1782977441000,-1121.52,0.0002887,7]
[426881202,1782977441000,-150.0,0.00029,7]
[426881175,1782977441000,-418401.1246519,0.00028941,2]
[426881176,1782977441000,-4862.4340204,0.00028941,2]
[426881203,1782977441000,-2000.0,0.00029,4]
[426881170,1782977441000,-529.79,0.0002894,7]
[426881174,1782977441000,-294595.3058019,0.00028941,2]
[426881147,1782977441000,-317.0,0.000289,2]
[426881149,1782977441000,-463.0,0.0002891,10]
[426881152,1782977441000,-500.0,0.0002891,14]
[426881155,1782977441000,-529.79,0.0002891,7]
[426881156,1782977441000,-27447.69628489,0.00028911,2]
[426881148,1782977441000,-890.0,0.000289,2]
[426881153,1782977441000,-1121.52,0.0002891,7]
[426881151,1782977441000,-500.0,0.0002891,5]
[426881150,1782977441000,-500.0,0.0002891,7]
[426881158,1782977441000,-80072.8346514,0.00028938,2]
[426881159,1782977441000,-2361.870269,0.00028938,2]
[426881160,1782977441000,-55381.7172175,0.00028938,2]
[426881145,1782977441000,-1400.0,0.000289,10]
[426881161,1782977441000,-151.0,0.00028938,7]
[426881157,1782977441000,-315348.3875716,0.00028911,2]
[426881172,1782977441000,-529.79,0.0002894,7]
[426881171,1782977441000,-529.79,0.0002894,7]
[426881165,1782977441000,-151.25438698,0.0002894,20]
[426881169,1782977441000,-1121.52,0.0002894,7]
[426881173,1782977441000,-6407.5144222,0.00028941,2]
[426881168,1782977441000,-1121.52,0.0002894,7]
[426881163,1782977441000,-500.0,0.0002894,5]
[426881167,1782977441000,-1121.52,0.0002894,7]
[426881164,1782977441000,-500.0,0.0002894,14]
[426881162,1782977441000,-500.0,0.0002894,7]
[426881166,1782977441000,-3000.0,0.0002894,2]
[426881241,1782977442000,-155.0,0.00029,4]
[426881242,1782977442000,-155.0,0.00029,4]
[426881243,1782977442000,-155.0,0.00029,4]
[426881240,1782977442000,-155.0,0.00029,4]
[426881237,1782977442000,-155.0,0.00029,4]
[426881236,1782977442000,-155.0,0.00029,4]
[426881235,1782977442000,-155.0,0.00029,4]
[426881238,1782977442000,-155.0,0.00029,4]
[426881244,1782977442000,-155.0,0.00029,4]
[426881233,1782977442000,-1000.0,0.00029,2]
[426881239,1782977442000,-155.0,0.00029,4]
[426881246,1782977442000,-155.0,0.00029,4]
[426881251,1782977442000,-155.0,0.00029,4]
[426881248,1782977442000,-155.0,0.00029,4]
[426881247,1782977442000,-155.0,0.00029,4]
[426881249,1782977442000,-155.0,0.00029,4]
[426881252,1782977442000,-155.0,0.00029,4]
[426881253,1782977442000,-166.0,0.00029,4]
[426881250,1782977442000,-155.0,0.00029,4]
[426881255,1782977442000,-154.0,0.00029,4]
[426881256,1782977442000,-154.0,0.00029,4]
[426881254,1782977442000,-154.0,0.00029,4]
[426881257,1782977442000,-154.0,0.00029,4]
[426881234,1782977442000,-158.0,0.00029,4]
[426881259,1782977442000,-154.0,0.00029,4]
[426881245,1782977442000,-155.0,0.00029,4]
[426881232,1782977442000,-39273.10192125,0.00029,2]
[426881219,1782977442000,-160.89,0.00029,2]
[426881231,1782977442000,-168.58,0.00029,7]
[426881260,1782977442000,-154.0,0.00029,4]
[426881204,1782977442000,-500.0,0.00029,2]
[426881206,1782977442000,-500.0,0.00029,2]
[426881205,1782977442000,-500.0,0.00029,2]
[426881208,1782977442000,-500.0,0.00029,2]
[426881207,1782977442000,-500.0,0.00029,2]
[426881209,1782977442000,-336.32,0.00029,2]
[426881211,1782977442000,-160.89,0.00029,2]
[426881210,1782977442000,-160.89,0.00029,2]
[426881212,1782977442000,-160.89,0.00029,2]
[426881213,1782977442000,-160.89,0.00029,2]
[426881214,1782977442000,-160.89,0.00029,2]
[426881230,1782977442000,-1000.0,0.00029,2]
[426881216,1782977442000,-160.89,0.00029,2]
[426881215,1782977442000,-160.89,0.00029,2]
[426881218,1782977442000,-160.89,0.00029,2]
[426881220,1782977442000,-762.50774104,0.00029,2]
[426881222,1782977442000,-667.7550106,0.00029,2]
[426881221,1782977442000,-223.89550082,0.00029,2]
[426881223,1782977442000,-212.12218535,0.00029,2]
[426881225,1782977442000,-1000.0,0.00029,2]
[426881224,1782977442000,-1000.0,0.00029,2]
[426881226,1782977442000,-160.56,0.00029,7]
[426881227,1782977442000,-156.80803778,0.00029,3]
[426881228,1782977442000,-151.0,0.00029,3]
[426881229,1782977442000,-237.49225896,0.00029,2]
[426881217,1782977442000,-160.89,0.00029,2]
[426881264,1782977442000,-154.0,0.00029,4]
[426881317,1782977442000,-500.0,0.00029683,18]
[426881263,1782977442000,-154.0,0.00029,4]
[426881294,1782977442000,-741.37,0.00029294,2]
[426881295,1782977442000,-8242.62249748,0.00029349,2]
[426881299,1782977442000,-13702.56187946,0.00029429,2]
[426881297,1782977442000,-350.0,0.00029358,2]
[426881298,1782977442000,-8526.36039221,0.000294,2]
[426881296,1782977442000,-3096.7002,0.00029356,14]
[426881300,1782977442000,-11601.12614522,0.00029443,2]
[426881302,1782977442000,-12027.54586158,0.00029456,2]
[426881301,1782977442000,-152.61433426,0.00029448,2]
[426881303,1782977442000,-350.0,0.00029477,2]
[426881305,1782977442000,-262.62281173,0.00029505,2]
[426881307,1782977442000,-822.61535629,0.00029543,2]
[426881293,1782977442000,-361.72657512,0.00029285,2]
[426881306,1782977442000,-1283.47347249,0.00029508,2]
[426881312,1782977442000,-512.13,0.00029654,7]
[426881310,1782977442000,-344.09630258,0.000296,2]
[426881308,1782977442000,-3652.0,0.00029549,2]
[426881304,1782977442000,-586.50445313,0.000295,2]
[426881311,1782977442000,-648.0,0.00029641,2]
[426881313,1782977442000,-159.0,0.00029655,10]
[426881314,1782977442000,-250.0,0.00029668,7]
[426881315,1782977442000,-166.89,0.0002967,2]
[426881316,1782977442000,-350.0,0.00029672,14]
[426881319,1782977442000,-992.32,0.000297,2]
[426881265,1782977442000,-154.0,0.00029,4]
[426881318,1782977442000,-1488.47,0.00029699,2]
[426881309,1782977442000,-1720.48151294,0.000296,2]
[426881292,1782977442000,-1283.47347249,0.00029234,2]
[426881320,1782977442000,-8526.36039221,0.000297,2]
[426881291,1782977442000,-359.14869594,0.00029211,2]
[426881290,1782977442000,-500.0,0.00029211,2]
[426881262,1782977442000,-154.0,0.00029,4]
[426881258,1782977442000,-154.0,0.00029,4]
[426881266,1782977442000,-154.0,0.00029,4]
[426881267,1782977442000,-154.0,0.00029,4]
[426881268,1782977442000,-236.02,0.00029,7]
[426881270,1782977442000,-166.0,0.00029,2]
[426881269,1782977442000,-165.0,0.00029,2]
[426881271,1782977442000,-165.22,0.00029,7]
[426881272,1782977442000,-151.0,0.00029,3]
[426881274,1782977442000,-562.23695,0.00029,2]
[426881276,1782977442000,-562.23694,0.00029,2]
[426881273,1782977442000,-239.0,0.00029,2]
[426881261,1782977442000,-154.0,0.00029,4]
[426881277,1782977442000,-236.0,0.00029,2]
[426881279,1782977442000,-529.52797131,0.00029,2]
[426881280,1782977442000,-170.0,0.00029,2]
[426881278,1782977442000,-512.13,0.00029,7]
[426881282,1782977442000,-747.88,0.00029083,2]
[426881281,1782977442000,-1363.97664044,0.00029066,4]
[426881283,1782977442000,-987.0,0.000291,5]
[426881285,1782977442000,-206.45778155,0.00029144,30]
[426881275,1782977442000,-562.23695,0.00029,2]
[426881284,1782977442000,-8526.36039221,0.000291,2]
[426881287,1782977442000,-3867.9940332,0.00029161,2]
[426881288,1782977442000,-12027.54586158,0.0002918,2]
[426881289,1782977442000,-500.0,0.00029211,2]
[426881356,1782977443000,-210.50203826,0.00029943,2]
[426881358,1782977443000,-221.92380455,0.00029943,2]
[426881357,1782977443000,-262.53849511,0.00029943,2]
[426881359,1782977443000,-1121.52,0.00029972,7]
[426881349,1782977443000,-10090.62860011,0.000299,2]
[426881355,1782977443000,-150.0,0.00029926,2]
[426881352,1782977443000,-10090.62860011,0.000299,2]
[426881353,1782977443000,-10090.62860011,0.000299,2]
[426881351,1782977443000,-10090.62860011,0.000299,2]
[426881354,1782977443000,-10090.62860011,0.000299,2]
[426881360,1782977443000,-529.79,0.00029972,7]
[426881367,1782977443000,-300.0,0.00029999,10]
[426881363,1782977443000,-151.0,0.00029997,7]
[426881364,1782977443000,-260.94,0.00029999,3]
[426881365,1782977443000,-608.87,0.00029999,3]
[426881362,1782977443000,-242.6690847,0.0002999,2]
[426881366,1782977443000,-869.82,0.00029999,3]
[426881368,1782977443000,-300.0,0.00029999,10]
[426881370,1782977443000,-1121.52,0.00029999,7]
[426881369,1782977443000,-300.0,0.00029999,10]
[426881377,1782977443000,-529.79,0.00029999,7]
[426881371,1782977443000,-300.0,0.00029999,10]
[426881350,1782977443000,-10090.62860011,0.000299,2]
[426881373,1782977443000,-1121.52,0.00029999,7]
[426881361,1782977443000,-5582.0,0.00029973,2]
[426881347,1782977443000,-10090.62860011,0.000299,2]
[426881333,1782977443000,-71522.77578433,0.000299,2]
[426881345,1782977443000,-10090.62860011,0.000299,2]
[426881372,1782977443000,-1121.52,0.00029999,7]
[426881321,1782977443000,-350.0,0.00029705,2]
[426881324,1782977443000,-1308.41339486,0.00029734,2]
[426881323,1782977443000,-361.72657512,0.00029729,2]
[426881322,1782977443000,-157.89,0.00029726,2]
[426881326,1782977443000,-208.64889122,0.000298,2]
[426881325,1782977443000,-1283.47347249,0.00029782,2]
[426881327,1782977443000,-1900.0,0.000298,10]
[426881329,1782977443000,-3200.96239725,0.000298,2]
[426881328,1782977443000,-1266.21275651,0.000298,2]
[426881330,1782977443000,-13702.56187946,0.00029877,2]
[426881331,1782977443000,-1121.52,0.00029899,7]
[426881335,1782977443000,-10090.62860026,0.000299,2]
[426881336,1782977443000,-10090.62860011,0.000299,2]
[426881334,1782977443000,-2400.0,0.000299,10]
[426881332,1782977443000,-529.79,0.00029899,7]
[426881337,1782977443000,-10090.62860011,0.000299,2]
[426881338,1782977443000,-10090.62860011,0.000299,2]
[426881339,1782977443000,-10090.62860011,0.000299,2]
[426881344,1782977443000,-10090.62860011,0.000299,2]
[426881340,1782977443000,-10090.62860011,0.000299,2]
[426881342,1782977443000,-10090.62860011,0.000299,2]
[426881343,1782977443000,-10090.62860011,0.000299,2]
[426881341,1782977443000,-10090.62860011,0.000299,2]
[426881348,1782977443000,-10090.62860011,0.000299,2]
[426881346,1782977443000,-10090.62860011,0.000299,2]
[426881374,1782977443000,-300.0,0.00029999,10]
[426881431,1782977443000,-2500.0,0.0003,2]
[426881375,1782977443000,-666.0,0.00029999,10]
[426881410,1782977443000,-2500.0,0.0003,2]
[426881408,1782977443000,-2000.0,0.0003,16]
[426881407,1782977443000,-35000.0,0.0003,10]
[426881409,1782977443000,-12499.99,0.0003,2]
[426881406,1782977443000,-467.19,0.0003,15]
[426881412,1782977443000,-10000.0,0.0003,2]
[426881413,1782977443000,-15000.0,0.0003,2]
[426881414,1782977443000,-25000.0,0.0003,2]
[426881416,1782977443000,-12499.99,0.0003,2]
[426881415,1782977443000,-12500.0,0.0003,2]
[426881418,1782977443000,-7239.05,0.0003,2]
[426881411,1782977443000,-12499.98,0.0003,2]
[426881417,1782977443000,-12499.99,0.0003,2]
[426881420,1782977443000,-9999.99,0.0003,2]
[426881423,1782977443000,-12500.0,0.0003,2]
[426881422,1782977443000,-25000.0,0.0003,2]
[426881424,1782977443000,-10000.0,0.0003,2]
[426881421,1782977443000,-12500.0,0.0003,2]
[426881426,1782977443000,-200.0,0.0003,11]